bitfinex-derivatives/quotes_BTCF0:USTF0_20241025
["timestamp","ask_amount","ask_price","bid_price","bid_amount"]
[1729853474215,0.21561631,67914.0,67913.0,0.07367]
[1729853475112,0.21561631,67914.0,67908.0,0.3608]
[1729853475308,0.08369049,67909.0,67908.0,0.073676]
[1729853475513,0.1655413,67909.0,67908.0,0.073676]
[1729853475708,0.1655413,67909.0,67897.0,0.07518511]
[1729853475709,0.073681,67904.0,67900.0,0.467844]
[1729853476014,0.073681,67904.0,67900.0,0.467084]
[1729853476015,0.21550166,67903.0,67900.0,0.467084]
[1729853476215,0.21550166,67903.0,67901.0,0.073684]
[1729853476216,0.08185081,67902.0,67901.0,0.073684]
[1729853476514,0.13212157,67902.0,67901.0,0.073684]
[1729853477310,0.08185081,67902.0,67901.0,0.073684]
[1729853477910,0.15553381,67902.0,67901.0,0.073684]
[1729853478213,0.20560709,67902.0,67901.0,0.073684]
[1729853479305,0.15553381,67902.0,67901.0,0.073684]
[1729853480315,0.073683,67902.0,67901.0,0.25661641]
[1729853481213,0.073683,67902.0,67901.0,0.16846721]
[1729853483311,0.073683,67902.0,67901.0,0.16845742]
[1729853486111,0.10999338,67903.0,67901.0,0.16845742]
[1729853486313,0.10999338,67903.0,67902.0,0.16845642]
[1729853486314,0.02630289,67903.0,67902.0,0.16845642]
[1729853486614,0.08369049,67903.0,67902.0,0.16845642]
[1729853487436,0.08369049,67903.0,67902.0,0.09477342]
[1729853487624,0.15737249,67903.0,67902.0,0.09477342]
[1729853488126,0.24106298,67903.0,67902.0,0.09477342]
[1729853488425,0.073685,67901.0,67896.0,0.073689]
[1729853488725,0.08369049,67899.0,67896.0,0.073689]
[1729853488923,0.08040679,67898.0,67896.0,0.073689]
[1729853489119,0.08040679,67897.0,67896.0,0.073689]
[1729853490726,0.03720733,67897.0,67896.0,0.073689]
[1729853491421,0.11089533,67897.0,67896.0,0.073689]
[1729853493619,0.03720733,67897.0,67896.0,0.073689]
[1729853495032,0.03720733,67897.0,67896.0,0.434489]
[1729853495529,0.15737749,67899.0,67898.0,0.073687]
[1729853495728,0.15737749,67899.0,67898.0,0.16891202]
[1729853496229,0.15737749,67899.0,67898.0,0.25706122]
[1729853496831,0.15737749,67899.0,67898.0,0.09522502]
[1729853497035,0.15737749,67899.0,67898.0,0.16855457]
[1729853497234,0.15737649,67899.0,67898.0,0.07333861]
[1729853497535,0.073687,67898.0,67897.0,0.07333861]
[1729853497737,0.15737749,67898.0,67897.0,0.16880837]
[1729853498125,0.15737749,67898.0,67897.0,0.07333861]
[1729853498429,0.15737749,67898.0,67897.0,0.09547633]
[1729853503350,0.19443702,67898.0,67894.0,0.073691]
[1729853503645,0.08369049,67895.0,67894.0,0.073691]
[1729853503846,0.12075002,67895.0,67894.0,0.073691]
[1729853505048,0.12075002,67895.0,67891.0,0.063]
[1729853505049,0.073694,67892.0,67891.0,0.063]
[1729853505352,0.23733908,67892.0,67891.0,0.063]
[1729853505747,0.23733908,67892.0,67891.0,0.0303]
[1729853506241,0.23715524,67892.0,67891.0,0.0303]
[1729853507345,0.23715524,67892.0,67891.0,0.103995]
[1729853507346,0.16346124,67892.0,67891.0,0.103995]
[1729853509251,0.16402678,67892.0,67891.0,0.103995]
[1729853510052,0.16401606,67892.0,67891.0,0.103995]
[1729853510453,0.073689,67896.0,67891.0,0.103995]
[1729853510454,0.073689,67896.0,67893.0,0.073692]
[1729853510759,0.073689,67896.0,67894.0,0.20922744]
[1729853511053,0.073689,67896.0,67895.0,0.20922744]
[1729853511245,0.073689,67896.0,67895.0,0.20922761]
[1729853512950,0.15737949,67896.0,67895.0,0.20922761]
[1729853515652,0.15737949,67896.0,67895.0,0.20858122]
[1729853518449,0.24106998,67896.0,67895.0,0.07350955]
[1729853519164,0.15737949,67896.0,67895.0,0.07350955]
[1729853519962,0.24106998,67896.0,67895.0,0.16872572]
[1729853520460,0.24106998,67896.0,67895.0,0.16873507]
[1729853520856,0.07369,67895.0,67894.0,0.07350955]
[1729853521060,0.24107098,67895.0,67894.0,0.16875371]
[1729853521259,0.15738049,67895.0,67894.0,0.07350955]
[1729853521662,0.24107098,67895.0,67894.0,0.07350955]
[1729853523068,0.15738049,67895.0,67894.0,0.07350955]
[1729853523464,0.24107098,67895.0,67894.0,0.07350955]
[1729853523661,0.15738049,67895.0,67894.0,0.07350955]
[1729853525159,0.15738049,67895.0,67894.0,0.16883268]
[1729853525558,0.15738049,67895.0,67890.0,0.073696]
[1729853525559,0.073692,67894.0,67890.0,0.073696]
[1729853525757,0.08369049,67891.0,67890.0,0.073696]
[1729853526161,0.03747886,67891.0,67890.0,0.073696]
[1729853526368,0.12116935,67891.0,67890.0,0.073696]
[1729853527674,0.08369049,67891.0,67890.0,0.073696]
[1729853528564,0.12114045,67891.0,67890.0,0.073696]
[1729853529473,0.08369049,67891.0,67890.0,0.073696]
[1729853529663,0.08369049,67891.0,67890.0,0.09674183]
[1729853531065,0.43568801,67897.0,67890.0,0.02304583]
[1729853531370,0.08369049,67891.0,67890.0,0.073696]
[1729853531571,0.08369049,67891.0,67890.0,0.09674167]
[1729853533073,0.07369,67896.0,67893.0,0.073692]
[1729853533374,0.03747553,67895.0,67894.0,0.106391]
[1729853533569,0.07369,67896.0,67895.0,0.07369]
[1729853533766,0.07369,67896.0,67895.0,0.28268403]
[1729853534570,0.15738049,67896.0,67895.0,0.28268403]
[1729853535566,0.08369049,67896.0,67895.0,0.28268403]
[1729853535876,0.01,75200.0,67895.0,0.28268403]
[1729853535877,0.09516,67907.0,67895.0,0.31205818]
[1729853536072,0.08369049,67901.0,67900.0,0.073685]
[1729853536369,0.073675,67910.0,67907.0,0.073677]
[1729853536573,0.073675,67910.0,67909.0,0.08815504]
[1729853536769,0.073675,67910.0,67909.0,0.1835007]
[1729853536969,0.15736549,67910.0,67909.0,0.1835007]
[1729853537175,0.15736549,67910.0,67909.0,0.09534566]
[1729853538076,0.15736549,67910.0,67909.0,0.09488615]
[1729853538077,0.18353979,67910.0,67909.0,0.09488615]
[1729853538572,0.0998493,67910.0,67909.0,0.09488615]
[1729853538968,0.18353979,67910.0,67909.0,0.09488615]
[1729853540471,0.10986579,67910.0,67908.0,0.0440523]
[1729853540675,0.15736649,67909.0,67908.0,0.0440523]
[1729853542273,0.15736649,67909.0,67905.0,0.0587364]
[1729853542588,0.08369049,67906.0,67905.0,0.0587364]
[1729853543470,0.08369049,67906.0,67904.0,0.1324164]
[1729853543688,0.15736949,67906.0,67904.0,0.0587364]
[1729853545677,0.15736949,67906.0,67904.0,0.0907364]
[1729853546575,0.15736949,67906.0,67904.0,0.11729984]
[1729853546778,0.08369049,67905.0,67904.0,0.13224344]
[1729853547880,0.08369049,67905.0,67904.0,0.20566394]
[1729853548390,0.08369049,67905.0,67904.0,0.13224344]
[1729853548577,0.21543497,67905.0,67904.0,0.13224344]
[1729853551279,0.21543497,67905.0,67904.0,0.05856344]
[1729853552291,0.21543497,67905.0,67904.0,0.13224444]
[1729853555486,0.08369049,67905.0,67904.0,0.13224444]
[1729853560788,0.08369049,67905.0,67904.0,0.20566494]
[1729853561288,0.08369049,67905.0,67904.0,0.30036809]
[1729853562394,0.08369049,67905.0,67904.0,0.22694759]
[1729853562588,0.16567953,67905.0,67904.0,0.13224444]
[1729853564989,0.16567953,67905.0,67904.0,0.10024444]
[1729853565492,0.16581312,67905.0,67904.0,0.10024444]
[1729853569290,0.16581312,67905.0,67904.0,0.02656344]
[1729853569596,0.23949312,67905.0,67902.0,0.073682]
[1729853569797,0.08369049,67903.0,67902.0,0.073682]
[1729853571205,0.16581312,67903.0,67902.0,0.073682]
[1729853572494,0.08369049,67903.0,67902.0,0.073682]
[1729853577006,0.08369049,67903.0,67902.0,0.28173939]
[1729853577410,0.08369049,67903.0,67902.0,0.16860035]
[1729853579104,0.08369049,67903.0,67902.0,0.073682]
[1729853581308,0.08369049,67903.0,67902.0,0.09672317]
[1729853581705,0.08369049,67903.0,67902.0,0.073682]
[1729853581907,0.08369049,67903.0,67902.0,0.09672322]
[1729853582114,0.08369049,67903.0,67902.0,0.073682]
[1729853582115,0.12169914,67903.0,67902.0,0.073682]
[1729853583412,0.12173902,67903.0,67902.0,0.073682]
[1729853586111,0.12173902,67903.0,67902.0,0.28157265]
[1729853586112,0.08369049,67903.0,67902.0,0.28157265]
[1729853588122,0.08369049,67903.0,67902.0,0.28153641]
[1729853589218,0.08369049,67903.0,67902.0,0.30457769]
[1729853592122,0.08369049,67903.0,67902.0,0.27976002]
[1729853592818,0.08369049,67903.0,67902.0,0.27973308]
[1729853593319,0.073679,67906.0,67905.0,0.07368]
[1729853593515,0.15736949,67906.0,67905.0,0.19152009]
[1729853593714,0.08369049,67906.0,67905.0,0.19152009]
[1729853594222,0.12171774,67906.0,67905.0,0.09672128]
[1729853595517,0.12171774,67906.0,67903.0,0.073681]
[1729853595518,0.07368,67905.0,67903.0,0.073681]
[1729853595724,0.12171774,67904.0,67903.0,0.073681]
[1729853595918,0.12171774,67904.0,67903.0,0.09672277]
[1729853597321,0.12151525,67904.0,67903.0,0.073681]
[1729853601129,0.08369049,67904.0,67903.0,0.16862974]
[1729853602125,0.08369049,67904.0,67903.0,0.16862897]
[1729853612032,0.44449049,67909.0,67908.0,0.073676]
[1729853612634,0.44449049,67909.0,67908.0,0.24177518]
[1729853612933,0.44449049,67909.0,67908.0,0.16828745]
[1729853613235,0.42208,67918.0,67917.0,0.073667]
[1729853613430,0.50449049,67918.0,67917.0,0.073667]
[1729853614132,0.50449049,67918.0,67915.0,0.07346555]
[1729853614523,0.50449049,67918.0,67910.0,0.073674]
[1729853614524,0.50449049,67918.0,67914.0,0.07346555]
[1729853614726,0.08369049,67915.0,67914.0,0.07346555]
[1729853615534,0.08369049,67915.0,67913.0,0.07346555]
[1729853615833,0.08369049,67914.0,67913.0,0.07346555]
[1729853616029,0.08369049,67914.0,67913.0,0.1677554]
[1729853616224,0.1667977,67914.0,67909.0,0.168275]
[1729853616532,0.08310721,67913.0,67909.0,0.168275]
[1729853616731,0.08310721,67912.0,67909.0,0.168275]
[1729853616931,0.08310721,67911.0,67909.0,0.168275]
[1729853617136,0.08310721,67910.0,67909.0,0.19455949]
[1729853619028,0.08310721,67910.0,67909.0,0.12088449]
[1729853620427,0.08271142,67910.0,67909.0,0.12088449]
[1729853622130,0.15638542,67910.0,67909.0,0.12088449]
[1729853622731,0.15638542,67910.0,67909.0,0.0946]
[1729853624335,0.073674,67910.0,67909.0,0.0946]
[1729853625125,0.073674,67910.0,67909.0,0.0627]
[1729853625330,0.15736449,67910.0,67909.0,0.0627]
[1729853631232,0.15736449,67910.0,67909.0,0.27016738]
[1729853631941,0.11312898,67910.0,67909.0,0.27016738]
[1729853632135,0.15736449,67910.0,67909.0,0.27016738]
[1729853632540,0.15736449,67910.0,67909.0,0.15734918]
[1729853632735,0.15736449,67910.0,67909.0,0.26919031]
[1729853633146,0.15736449,67910.0,67909.0,0.0627]
[1729853633844,0.15736449,67910.0,67909.0,0.26920336]
[1729853635047,0.15736449,67910.0,67909.0,0.34287836]
[1729853635248,0.15736449,67910.0,67909.0,0.3428801]
[1729853637346,0.073674,67910.0,67909.0,0.3428801]
[1729853637645,0.15736449,67910.0,67909.0,0.3428801]
[1729853639741,0.15736449,67910.0,67909.0,0.34304466]
[1729853641841,0.15736449,67910.0,67909.0,0.36608377]
[1729853642044,0.15736449,67910.0,67909.0,0.34304466]
[1729853642441,0.15736449,67910.0,67909.0,0.36608377]
[1729853642844,0.073674,67910.0,67909.0,0.46893132]
[1729853643046,0.073674,67910.0,67909.0,0.4691181]
[1729853643444,0.08369049,67912.0,67911.0,0.073673]
[1729853643645,0.08369049,67912.0,67911.0,0.28052944]
[1729853646242,0.1221967,67912.0,67911.0,0.073673]
[1729853647643,0.12218904,67912.0,67911.0,0.073673]
[1729853648761,0.12218904,67912.0,67909.0,0.0627]
[1729853648762,0.073674,67911.0,67909.0,0.0627]
[1729853648952,0.03849855,67910.0,67909.0,0.136375]
[1729853649154,0.03849855,67910.0,67909.0,0.12881411]
[1729853649352,0.08310574,67910.0,67905.0,0.073679]
[1729853649557,0.073681,67905.0,67902.0,0.073683]
[1729853649852,0.073685,67900.0,67898.0,0.073687]
[1729853650045,0.19557568,67900.0,67899.0,0.434486]
[1729853650248,0.19557568,67900.0,67899.0,0.3608]
[1729853650548,0.19557568,67900.0,67895.0,0.0263655]
[1729853650549,0.12196972,67900.0,67895.0,0.0263655]
[1729853650752,0.08369049,67896.0,67895.0,0.1000555]
[1729853651057,0.12196972,67896.0,67895.0,0.09638932]
[1729853651254,0.08369049,67896.0,67895.0,0.09638932]
[1729853651455,0.073684,67901.0,67895.0,0.02269932]
[1729853651657,0.03820163,67900.0,67899.0,0.073686]
[1729853651960,0.12189212,67900.0,67899.0,0.073686]
[1729853653250,0.08369049,67900.0,67899.0,0.073686]
[1729853654258,0.08369049,67900.0,67899.0,0.2810342]
[1729853656754,0.08369049,67900.0,67899.0,0.28094374]
[1729853656958,0.08369049,67900.0,67899.0,0.30398617]
[1729853657161,0.08369049,67900.0,67899.0,0.28094374]
[1729853657358,0.08369049,67900.0,67899.0,0.30398617]
[1729853658363,0.08369049,67900.0,67899.0,0.28094374]
[1729853659367,0.08369049,67901.0,67900.0,0.073685]
[1729853659658,0.08369049,67901.0,67900.0,0.28094274]
[1729853662367,0.11369049,67904.0,67903.0,0.073682]
[1729853662567,0.11369049,67904.0,67903.0,0.16823554]
[1729853662956,0.11369049,67904.0,67903.0,0.52903554]
[1729853663170,0.11369049,67904.0,67903.0,0.64129575]
[1729853666064,0.11369049,67904.0,67903.0,0.64072403]
[1729853667267,0.03,67904.0,67903.0,0.64072403]
[1729853667464,0.11369049,67904.0,67903.0,0.64072403]
[1729853667661,0.08369049,67904.0,67903.0,0.64072403]
[1729853668769,0.08369049,67904.0,67903.0,0.52857216]
[1729853669362,0.08369049,67904.0,67903.0,0.434482]
[1729853669363,0.12225568,67904.0,67903.0,0.434482]
[1729853670467,0.03856519,67904.0,67903.0,0.434482]
[1729853671281,0.08350015,67904.0,67903.0,0.3608]
[1729853671582,0.08369049,67911.0,67910.0,0.073674]
[1729853671872,0.12865969,67911.0,67910.0,0.073674]
[1729853672063,0.21860474,67911.0,67910.0,0.073674]
[1729853672865,0.16739129,67911.0,67910.0,0.073674]
[1729853673260,0.0837008,67911.0,67910.0,0.073674]
[1729853673466,0.0837008,67911.0,67910.0,0.15736449]
[1729853673874,0.0837008,67911.0,67910.0,0.18448558]
[1729853674465,0.0387316,67911.0,67910.0,0.18448558]
[1729853675166,0.03883292,67913.0,67910.0,0.11081158]
[1729853675368,0.03890132,67912.0,67910.0,0.11081158]
[1729853675572,0.12259181,67911.0,67910.0,0.10079509]
[1729853676275,0.08369049,67911.0,67910.0,0.24093723]
[1729853680366,0.08369049,67911.0,67910.0,0.14706815]
[1729853683280,0.08369049,67911.0,67910.0,0.073674]
[1729853684187,0.08369049,67911.0,67910.0,0.24094947]
[1729853684373,0.08369049,67911.0,67910.0,0.073674]
[1729853684374,0.1226553,67911.0,67910.0,0.073674]
[1729853684670,0.12265446,67911.0,67910.0,0.073674]
[1729853685677,0.03896397,67911.0,67910.0,0.073674]
[1729853691278,0.08369049,67912.0,67910.0,0.20601863]
[1729853691577,0.08369049,67912.0,67909.0,0.02653886]
[1729853691578,0.08369049,67912.0,67911.0,0.27969163]
[1729853693799,0.08369049,67912.0,67911.0,0.2797217]
[1729853694087,0.08369049,67912.0,67911.0,0.27972193]
[1729853696576,0.08369049,67914.0,67913.0,0.073671]
[1729853696782,0.08369049,67914.0,67913.0,0.27971993]
[1729853697192,0.3608,67917.0,67913.0,0.20604893]
[1729853697394,0.3608,67917.0,67916.0,0.073668]
[1729853697583,0.44449049,67917.0,67916.0,0.27971693]
[1729853699288,0.58059695,67917.0,67916.0,0.073668]
[1729853699493,0.72796824,67917.0,67916.0,0.073668]
[1729853699683,0.58059695,67917.0,67916.0,0.073668]
[1729853700586,0.72796824,67917.0,67916.0,0.073668]
[1729853701301,0.58059695,67917.0,67916.0,0.073668]
[1729853701993,0.72794655,67917.0,67916.0,0.073668]
[1729853703586,0.58059695,67917.0,67916.0,0.073668]
[1729853704084,0.58059695,67917.0,67916.0,0.0998251]
[1729853704688,0.44524461,67917.0,67916.0,0.0998251]
[1729853704886,0.58060904,67917.0,67916.0,0.0998251]
[1729853705492,0.7279842,67917.0,67916.0,0.0998251]
[1729853706298,0.50817516,67917.0,67916.0,0.30578059]
[1729853706495,0.44449049,67917.0,67916.0,0.30578059]
[1729853707291,0.3608,67917.0,67916.0,0.30578059]
[1729853707489,0.44449049,67917.0,67916.0,0.30578059]
[1729853711091,0.44449049,67917.0,67916.0,0.30580861]
[1729853711705,0.44449049,67917.0,67916.0,0.28203787]
[1729853712201,0.44449049,67917.0,67916.0,0.30507602]
[1729853714409,0.44449049,67917.0,67916.0,0.12286325]
[1729853714907,0.08369049,67917.0,67916.0,0.12286325]
[1729853715593,0.08369049,67917.0,67916.0,0.26733477]
[1729853718697,0.06,67918.0,67917.0,0.073667]
[1729853718891,0.14369049,67918.0,67917.0,0.073667]
[1729853719405,0.14369049,67918.0,67917.0,0.14719066]
[1729853720198,0.14369049,67918.0,67917.0,0.24143679]
[1729853721399,0.27910426,67918.0,67917.0,0.073667]
[1729853725115,0.27909169,67918.0,67917.0,0.073667]
[1729853725612,0.27909169,67918.0,67915.0,0.09967748]
[1729853725613,0.073668,67917.0,67915.0,0.09967748]
[1729853725817,0.13534729,67916.0,67915.0,0.073669]
[1729853726409,0.13534729,67916.0,67910.0,0.073673]
[1729853726610,0.08369049,67913.0,67912.0,0.073672]
[1729853726911,0.21903778,67913.0,67912.0,0.073672]
[1729853728615,0.08369049,67913.0,67912.0,0.2806227]
[1729853731913,0.08369049,67913.0,67912.0,0.30366158]
[1729853732416,0.08369049,67913.0,67912.0,0.2806227]
[1729853732814,0.08369049,67913.0,67912.0,0.30366175]
[1729853733410,0.08369049,67913.0,67912.0,0.2806227]
[1729853734425,0.08369049,67913.0,67912.0,0.28018197]
[1729853735223,0.10065522,67914.0,67913.0,0.073671]
[1729853735425,0.18434571,67914.0,67913.0,0.28018097]
[1729853736521,0.18434571,67914.0,67913.0,0.073671]
[1729853736522,0.22304888,67914.0,67913.0,0.073671]
[1729853737511,0.14937888,67914.0,67913.0,0.073671]
[1729853739619,0.14937888,67914.0,67909.0,0.073674]
[1729853739827,0.08369049,67908.0,67907.0,0.10161055]
[1729853740013,0.12239366,67908.0,67907.0,0.10085055]
[1729853740417,0.12239366,67908.0,67907.0,0.12388999]
[1729853743621,0.08369049,67908.0,67907.0,0.33090843]
[1729853743835,0.08369049,67908.0,67907.0,0.30784035]
[1729853745728,0.08369049,67908.0,67907.0,0.3308804]
[1729853748430,0.08369049,67908.0,67907.0,0.33105275]
[1729853750323,0.15736649,67908.0,67907.0,0.16818693]
[1729853753726,0.15736649,67908.0,67907.0,0.09450993]
[1729853753931,0.15736649,67908.0,67907.0,0.18269775]
[1729853754333,0.15736649,67908.0,67907.0,0.08818782]
[1729853755440,0.15736649,67908.0,67907.0,0.16186482]
[1729853755637,0.15736649,67908.0,67907.0,0.073677]
[1729853756236,0.15736649,67908.0,67907.0,0.16834492]
[1729853758933,0.15736649,67908.0,67907.0,0.09466792]
[1729853761728,0.073676,67908.0,67905.0,0.073679]
[1729853761934,0.08369049,67906.0,67905.0,0.073679]
[1729853762729,0.073681,67904.0,67903.0,0.0305]
[1729853762929,0.51817149,67904.0,67903.0,0.0305]
[1729853763140,0.434481,67904.0,67903.0,0.0305]
[1729853763640,0.51817149,67904.0,67903.0,0.0305]
[1729853764036,0.434481,67904.0,67903.0,0.0305]
[1729853766440,0.51817149,67904.0,67903.0,0.0305]
[1729853767138,0.434481,67904.0,67903.0,0.0305]
[1729853767844,0.4612087,67904.0,67903.0,0.0305]
[1729853768738,0.54489919,67904.0,67903.0,0.0305]
[1729853769143,0.4612087,67904.0,67903.0,0.0305]
[1729853775751,0.4612087,67904.0,67903.0,0.23720953]
[1729853778246,0.54489919,67904.0,67903.0,0.23720953]
[1729853780941,0.62858968,67904.0,67903.0,0.23720953]
[1729853782647,0.66695816,67904.0,67903.0,0.104182]
[1729853783245,0.30615816,67904.0,67903.0,0.104182]
[1729853787654,0.30618267,67904.0,67903.0,0.104182]
[1729853788947,0.03839299,67904.0,67903.0,0.104182]
[1729853789350,0.12208348,67904.0,67903.0,0.104182]
[1729853790459,0.20577397,67904.0,67903.0,0.104182]
[1729853790654,0.20577397,67904.0,67903.0,0.31168984]
[1729853790655,0.16738098,67904.0,67903.0,0.31168984]
[1729853792249,0.16738098,67904.0,67903.0,0.31164979]
[1729853795662,0.02709995,67905.0,67904.0,0.073681]
[1729853795861,0.16738098,67905.0,67904.0,0.28114879]
[1729853797657,0.20557006,67905.0,67904.0,0.073681]
[1729853798166,0.03818908,67905.0,67904.0,0.073681]
[1729853798366,0.43447,67914.0,67913.0,0.073671]
[1729853798367,0.3608,67914.0,67913.0,0.073671]
[1729853798571,0.48929849,67914.0,67913.0,0.073671]
[1729853798757,0.44449049,67914.0,67913.0,0.073671]
[1729853804067,0.08369049,67914.0,67913.0,0.073671]
[1729853804461,0.15736049,67914.0,67913.0,0.073671]
[1729853804773,0.073674,67910.0,67907.0,0.103677]
[1729853805072,0.08369049,67916.0,67907.0,0.103677]
[1729853805073,0.08369049,67908.0,67907.0,0.103677]
[1729853805473,0.15736649,67908.0,67903.0,0.073681]
[1729853805665,0.08369049,67905.0,67904.0,0.24148551]
[1729853805978,0.08369049,67905.0,67904.0,0.14717353]
[1729853806163,0.073676,67908.0,67907.0,0.073677]
[1729853806470,0.15736649,67908.0,67907.0,0.073677]
[1729853806868,0.18394608,67908.0,67907.0,0.073677]
[1729853809975,0.073679,67906.0,67904.0,0.07349353]
[1729853810170,0.073679,67906.0,67905.0,0.07368]
[1729853811269,0.15736949,67906.0,67905.0,0.07368]
[1729853811672,0.15736949,67906.0,67905.0,0.14717353]
[1729853811975,0.15736949,67906.0,67905.0,0.07368]
[1729853812670,0.11313023,67906.0,67905.0,0.28042668]
[1729853812876,0.08369049,67906.0,67905.0,0.28042668]
[1729853813864,0.15736949,67906.0,67905.0,0.28042668]
[1729853817067,0.08369049,67906.0,67905.0,0.28042668]
[1729853820774,0.08369049,67906.0,67905.0,0.07368]
[1729853826680,0.08369049,67906.0,67900.0,0.08369049]
[1729853826681,0.073684,67901.0,67900.0,0.073684]
[1729853826876,0.12230588,67901.0,67900.0,0.073684]
[1729853827687,0.12226911,67901.0,67900.0,0.073684]
[1729853827887,0.08369049,67901.0,67900.0,0.27997824]
[1729853832583,0.1103719,67901.0,67900.0,0.27997824]
[1729853835186,0.06612928,67901.0,67900.0,0.27997824]
[1729853839096,0.13981328,67901.0,67900.0,0.27997824]
[1729853839800,0.13981328,67901.0,67900.0,0.20629424]
[1729853841294,0.13981328,67901.0,67900.0,0.09411398]
[1729853842092,0.13981328,67901.0,67900.0,0.18220385]
[1729853842298,0.13981328,67901.0,67900.0,0.09411398]
[1729853842891,0.13981328,67901.0,67899.0,0.08809611]
[1729853842892,0.073686,67899.0,67895.0,0.07369]
[1729853843197,0.08369049,67896.0,67895.0,0.07369]
[1729853845494,0.15737949,67896.0,67895.0,0.07369]
[1729853845998,0.15737949,67896.0,67891.0,0.3608]
[1729853845999,0.073691,67895.0,67891.0,0.3608]
[1729853846198,0.08369049,67892.0,67891.0,0.434495]
[1729853850902,0.08369049,67892.0,67891.0,0.63986235]
[1729853851412,0.1836436,67892.0,67891.0,0.63986384]
[1729853853606,0.1836436,67892.0,67891.0,0.56616884]
[1729853855208,0.13939576,67892.0,67891.0,0.56616884]
[1729853856011,0.13939576,67892.0,67891.0,0.56537075]
[1729853857706,0.13939576,67892.0,67891.0,0.63906575]
[1729853857905,0.13939576,67892.0,67891.0,0.434495]
[1729853858504,0.13939576,67892.0,67891.0,0.073695]
[1729853866014,0.13939576,67892.0,67891.0,0.27801713]
[1729853872917,0.17919002,67892.0,67891.0,0.073695]
[1729853873412,0.03979426,67892.0,67891.0,0.073695]
[1729853873607,0.12348475,67892.0,67891.0,0.073695]
[1729853879416,0.12346449,67892.0,67891.0,0.073695]
[1729853881024,0.08369049,67892.0,67891.0,0.51057099]
[1729853881229,0.03944267,67892.0,67891.0,0.51057099]
[1729853881929,0.03944267,67892.0,67891.0,0.38130951]
[1729853882419,0.03944267,67892.0,67891.0,0.17657536]
[1729853882619,0.11313667,67892.0,67891.0,0.30682846]
[1729853882815,0.24107498,67892.0,67891.0,0.30682846]
[1729853883120,0.24107498,67892.0,67891.0,0.2039481]
[1729853883315,0.63307498,67892.0,67891.0,0.09304364]
[1729853885212,0.3608,67892.0,67891.0,0.09304364]
[1729853885417,0.44449049,67892.0,67891.0,0.25498768]
[1729853885625,0.44449049,67892.0,67891.0,0.16673864]
[1729853886226,0.08369049,67892.0,67891.0,0.16673864]
[1729853886923,0.08369049,67892.0,67891.0,0.27771584]
[1729853887837,0.08369049,67892.0,67891.0,0.27766809]
[1729853888038,0.08369049,67892.0,67891.0,0.073695]
[1729853891029,0.02663096,67893.0,67889.0,0.02651535]
[1729853891231,0.09476,67895.0,67892.0,0.073694]
[1729853891441,0.09476,67895.0,67893.0,0.13245386]
[1729853892437,0.3608,67898.0,67893.0,0.05876086]
[1729853892624,0.08369049,67894.0,67890.0,0.07345104]
[1729853892824,0.08369049,67891.0,67890.0,0.07345104]
[1729853893031,0.08369049,67891.0,67890.0,0.16692954]
[1729853896133,0.1695381,67891.0,67890.0,0.073696]
[1729853900541,0.22205426,67891.0,67890.0,0.073696]
[1729853901045,0.1695381,67891.0,67890.0,0.073696]
[1729853903038,0.1695381,67891.0,67890.0,0.27822364]
[1729853903039,0.08369049,67891.0,67890.0,0.27822364]
[1729853903346,0.03944348,67891.0,67890.0,0.27822364]
[1729853905245,0.03944348,67891.0,67890.0,0.381104]
[1729853905940,0.03944348,67891.0,67890.0,0.27822364]
[1729853906456,0.08369049,67891.0,67890.0,0.381104]
[1729853906650,0.08369049,67891.0,67890.0,0.30126887]
[1729853906946,0.08369049,67891.0,67890.0,0.40414921]
[1729853907948,0.08369049,67891.0,67890.0,0.381104]
[1729853908152,0.08369049,67891.0,67890.0,0.50999613]
[1729853910954,0.08369049,67891.0,67890.0,0.30126885]
[1729853911155,0.12352326,67891.0,67890.0,0.09674121]
[1729853911558,0.12352326,67891.0,67890.0,0.073696]
[1729853911853,0.12352326,67891.0,67890.0,0.09674121]
[1729853912557,0.12352326,67891.0,67890.0,0.073696]
[1729853912558,0.16977827,67891.0,67890.0,0.073696]
[1729853913858,0.08608778,67891.0,67890.0,0.073696]
[1729853914056,0.16977827,67891.0,67890.0,0.073696]
[1729853914752,0.08608778,67891.0,67890.0,0.073696]
[1729853914952,0.16977827,67891.0,67890.0,0.073696]
[1729853918266,0.08369049,67891.0,67890.0,0.27827188]
[1729853919656,0.08369049,67891.0,67890.0,0.27831132]
[1729853919866,0.08369049,67891.0,67890.0,0.38119168]
[1729853920257,0.08369049,67891.0,67890.0,0.27831132]
[1729853924369,0.08369049,67891.0,67890.0,0.38119168]
[1729853926060,0.08369049,67891.0,67890.0,0.51036705]
[1729853926473,0.08369049,67891.0,67890.0,0.38119168]
[1729853926668,0.08369049,67891.0,67890.0,0.27831132]
[1729853927164,0.08369049,67891.0,67890.0,0.51036482]
[1729853929063,0.08369049,67891.0,67890.0,0.30135661]
[1729853931470,0.08369049,67891.0,67890.0,0.27831132]
[1729853931668,0.08369049,67891.0,67890.0,0.30135661]
[1729853933170,0.08369049,67891.0,67890.0,0.09674129]
[1729853933376,0.12376154,67891.0,67890.0,0.09674129]
[1729853933673,0.17037247,67891.0,67890.0,0.09674129]
[1729853936066,0.17037247,67891.0,67890.0,0.073696]
[1729853937270,0.08668198,67891.0,67890.0,0.073696]
[1729853937573,0.10081135,67898.0,67894.0,0.073691]
[1729853937772,0.13972407,67897.0,67896.0,0.073689]
[1729853937970,0.22341456,67897.0,67896.0,0.073689]
[1729853938370,0.22272873,67897.0,67896.0,0.073689]
[1729853940179,0.08369049,67897.0,67896.0,0.2781165]
[1729853941778,0.08369049,67897.0,67896.0,0.27813395]
[1729853946290,0.08369049,67897.0,67896.0,0.073689]
[1729853946495,0.08369049,67897.0,67896.0,0.27811187]
[1729853948188,0.08369049,67897.0,67896.0,0.073689]
[1729853948887,0.22280659,67897.0,67896.0,0.073689]
[1729853950195,0.3702614,67897.0,67896.0,0.073689]
[1729853950901,0.22280659,67897.0,67896.0,0.073689]
[1729853951197,0.2229503,67897.0,67896.0,0.073689]
[1729853953601,0.22300221,67897.0,67896.0,0.073689]
[1729853953799,0.13931172,67897.0,67896.0,0.073689]
[1729853953999,0.22300221,67897.0,67896.0,0.073689]
[1729853955305,0.08369049,67897.0,67896.0,0.27805042]
[1729853955806,0.08369049,67897.0,67896.0,0.27805114]
[1729853957610,0.02681819,67899.0,67898.0,0.073687]
[1729853957919,0.08369049,67899.0,67898.0,0.27804914]
[1729853960614,0.08369049,67899.0,67898.0,0.27805001]
[1729853961505,0.08369049,67899.0,67898.0,0.2551448]
[1729853961709,0.08369049,67899.0,67898.0,0.16691993]
[1729853962609,0.08369049,67899.0,67898.0,0.2551448]